[Event "*** Titled Tuesday 3|2 Blitz"]
[Site "Chess.com"]
[Date "2016.02.02"]
[Round "3"]
[White "Yaacovn"]
[Black "dretch"]
[Result "1-0"]
[WhiteElo "2564"]
[BlackElo "2451"]
[TimeControl "180+2"]
[EndTime "17:34:26 PST"]
[Termination "Yaacovn won by resignation"]

1. d4 {[%clk 0:03:01.9]} 1... d5 {[%clk 0:03:00.8]} 2. Nf3 {[%clk 0:03:03.3]}
2... Nf6 {[%clk 0:03:02.1]} 3. c4 {[%clk 0:03:04.5]} 3... c6 {[%clk 0:03:03.4]}
4. cxd5 {[%clk 0:03:06]} 4... cxd5 {[%clk 0:03:04.3]} 5. Nc3 {[%clk 0:03:07.9]}
5... Nc6 {[%clk 0:03:05.9]} 6. Bf4 {[%clk 0:03:08.6]} 6... a6 {[%clk 0:03:06.3]}
7. Ne5 {[%clk 0:03:05.7]} 7... e6 {[%clk 0:03:05.9]} 8. e3 {[%clk 0:03:05.3]}
8... Nxe5 {[%clk 0:03:05]} 9. Bxe5 {[%clk 0:03:06.3]} 9... Be7 {[%clk
0:02:58.2]} 10. Bd3 {[%clk 0:03:06.3]} 10... O-O {[%clk 0:02:58.8]} 11. O-O
{[%clk 0:03:06.4]} 11... b5 {[%clk 0:02:57.5]} 12. Rc1 {[%clk 0:03:05.8]} 12...
Bb7 {[%clk 0:02:58.3]} 13. Qf3 {[%clk 0:03:05.7]} 13... Rc8 {[%clk 0:02:57]} 14.
Qh3 {[%clk 0:03:02.8]} 14... h6 {[%clk 0:02:48.1]} 15. Qg3 {[%clk 0:02:55.4]}
15... Kh8 {[%clk 0:02:17.1]} 16. Rc2 {[%clk 0:02:49]} 16... Ne8 {[%clk
0:02:11.8]} 17. Rfc1 {[%clk 0:02:48.3]} 17... Bd6 {[%clk 0:02:01.8]} 18. Ne2
{[%clk 0:02:43.4]} 18... Bxe5 {[%clk 0:02:01.8]} 19. dxe5 {[%clk 0:02:42.7]}
19... Rxc2 {[%clk 0:01:49.7]} 20. Rxc2 {[%clk 0:02:43.7]} 20... Qa5 {[%clk
0:01:51.1]} 21. h4 {[%clk 0:02:36.7]} 21... Qxa2 {[%clk 0:01:47.9]} 22. Nd4
{[%clk 0:02:36.2]} 22... Qa1+ {[%clk 0:01:42.3]} 23. Kh2 {[%clk 0:02:37.2]}
23... Qd1 {[%clk 0:01:41.5]} 24. Be2 {[%clk 0:02:25.4]} 24... Qe1 {[%clk
0:01:41.1]} 25. Qf4 {[%clk 0:02:23.8]} 25... Kg8 {[%clk 0:01:29.4]} 26. Bg4
{[%clk 0:02:24.1]} 26... Qb1 {[%clk 0:00:57.4]} 27. h5 {[%clk 0:01:49.2]} 27...
b4 {[%clk 0:00:51.1]} 28. b3 {[%clk 0:01:44.9]} 28... a5 {[%clk 0:00:39.9]} 29.
Rc5 {[%clk 0:01:42.4]} 29... a4 {[%clk 0:00:37.9]} 30. bxa4 {[%clk 0:01:39.2]}
30... b3 {[%clk 0:00:16.3]} 31. Rb5 {[%clk 0:01:33.1]} 31... b2 {[%clk 0:00:16]}
32. Rxb7 {[%clk 0:01:30.8]} 32... Qa2 {[%clk 0:00:11.4]} 33. Nxe6 {[%clk
0:01:27]} 33... b1=Q {[%clk 0:00:11.2]} 34. Rxb1 {[%clk 0:01:25.7]} 34... Qxb1
{[%clk 0:00:13.1]} 35. Nxf8 {[%clk 0:01:26.5]} 35... Kxf8 {[%clk 0:00:14.7]} 36.
Be6 {[%clk 0:01:07.4]} 36... Qb7 {[%clk 0:00:12.8]} 37. a5 {[%clk 0:01:03.8]}
37... Qe7 {[%clk 0:00:05.3]} 38. Bxd5 {[%clk 0:01:02.3]} 38... Nc7 {[%clk
0:00:06.3]} 39. Bc4 {[%clk 0:01:02.8]} 39... Ne6 {[%clk 0:00:03.1]} 40. Bxe6
{[%clk 0:01:00.6]} 40... Qxe6 {[%clk 0:00:04.1]} 41. Qb4+ {[%clk 0:00:56]} 41...
Kg8 {[%clk 0:00:05.3]} 42. Qe4 {[%clk 0:00:48]} 42... Qa6 {[%clk 0:00:05.2]} 43.
Qd5 {[%clk 0:00:47.6]} 43... Qa7 {[%clk 0:00:04.7]} 44. Qd8+ {[%clk 0:00:45.3]}
44... Kh7 {[%clk 0:00:05.3]} 45. Qd3+ {[%clk 0:00:43.9]} 45... Kh8 {[%clk
0:00:05.1]} 46. Qd5 {[%clk 0:00:43.3]} 46... Qe7 {[%clk 0:00:05.7]} 47. g3
{[%clk 0:00:43.5]} 47... Qe8 {[%clk 0:00:05.3]} 48. a6 {[%clk 0:00:41.6]} 48...
Qe7 {[%clk 0:00:05.2]} 49. Qa8+ {[%clk 0:00:39.8]} 49... Kh7 {[%clk 0:00:06.3]}
50. a7 {[%clk 0:00:37]} 50... Qg5 {[%clk 0:00:05.9]} 51. Qf3 {[%clk 0:00:36.9]}
1-0

[Event "*** Titled Tuesday 3|2 Blitz"]
[Site "Chess.com"]
[Date "2016.02.02"]
[Round "3"]
[White "Jahonas"]
[Black "Thomaslegend"]
[Result "1-0"]
[WhiteElo "2199"]
[BlackElo "2096"]
[TimeControl "180+2"]
[EndTime "17:34:30 PST"]
[Termination "Jahonas won by checkmate"]

1. d4 {[%clk 0:03:01.9]} 1... Nf6 {[%clk 0:03:00.5]} 2. Nf3 {[%clk 0:03:03]}
2... g6 {[%clk 0:03:01.1]} 3. c4 {[%clk 0:03:04.1]} 3... Bg7 {[%clk 0:03:01.2]}
4. e3 {[%clk 0:03:04]} 4... O-O {[%clk 0:03:01.6]} 5. Be2 {[%clk 0:03:05.3]}
5... c5 {[%clk 0:03:01.8]} 6. O-O {[%clk 0:03:06.4]} 6... d5 {[%clk 0:03:01.3]}
7. cxd5 {[%clk 0:03:04.5]} 7... cxd4 {[%clk 0:02:59.3]} 8. exd4 {[%clk
0:03:03.9]} 8... Nxd5 {[%clk 0:03:00.2]} 9. Nc3 {[%clk 0:03:05]} 9... Nc6 {[%clk
0:03:00.1]} 10. Be3 {[%clk 0:03:02.8]} 10... Bg4 {[%clk 0:02:48.6]} 11. h3
{[%clk 0:02:59.1]} 11... Nxe3 {[%clk 0:02:32.5]} 12. fxe3 {[%clk 0:02:58.4]}
12... Bxf3 {[%clk 0:02:27.8]} 13. Bxf3 {[%clk 0:02:54.8]} 13... Qa5 {[%clk
0:02:27.2]} 14. Qb3 {[%clk 0:02:48.1]} 14... Rab8 {[%clk 0:02:21.5]} 15. a3
{[%clk 0:02:28.2]} 15... e6 {[%clk 0:01:52.5]} 16. Ne4 {[%clk 0:02:17]} 16...
Ne7 {[%clk 0:01:33.3]} 17. Nc5 {[%clk 0:02:09.4]} 17... Qc7 {[%clk 0:01:08.5]}
18. Rac1 {[%clk 0:02:05.2]} 18... Nc6 {[%clk 0:01:05.1]} 19. Qa4 {[%clk
0:01:48.7]} 19... Qe7 {[%clk 0:00:57.7]} 20. b4 {[%clk 0:01:40.5]} 20... Bh6
{[%clk 0:00:53.4]} 21. Rc3 {[%clk 0:01:26.4]} 21... b5 {[%clk 0:00:32.5]} 22.
Qc2 {[%clk 0:01:13.4]} 22... Nd8 {[%clk 0:00:32.3]} 23. Kh1 {[%clk 0:01:01.5]}
23... Bg7 {[%clk 0:00:26.4]} 24. Rd3 {[%clk 0:01:01.2]} 24... Rc8 {[%clk
0:00:22.4]} 25. Rfd1 {[%clk 0:00:49.8]} 25... Nc6 {[%clk 0:00:14.9]} 26. Qe2
{[%clk 0:00:35.7]} 26... a5 {[%clk 0:00:14.2]} 27. Bxc6 {[%clk 0:00:30.1]} 27...
Rxc6 {[%clk 0:00:15.7]} 28. bxa5 {[%clk 0:00:30.8]} 28... Ra8 {[%clk 0:00:16.9]}
29. a6 {[%clk 0:00:31.3]} 29... e5 {[%clk 0:00:18]} 30. Qf3 {[%clk 0:00:27.6]}
30... Qc7 {[%clk 0:00:14.3]} 31. Rb3 {[%clk 0:00:23.6]} 31... Bf8 {[%clk
0:00:10.5]} 32. Rxb5 {[%clk 0:00:23.5]} 32... Bxc5 {[%clk 0:00:11.6]} 33. dxc5
{[%clk 0:00:22.6]} 33... Raxa6 {[%clk 0:00:12]} 34. Rdb1 {[%clk 0:00:19.6]}
34... Kg7 {[%clk 0:00:12.2]} 35. Rb7 {[%clk 0:00:20.4]} 35... Qa5 {[%clk
0:00:08.2]} 36. Qxf7+ {[%clk 0:00:20.2]} 36... Kh6 {[%clk 0:00:09.9]} 37. Qxh7+
{[%clk 0:00:20.2]} 37... Kg5 {[%clk 0:00:11.6]} 38. g3 {[%clk 0:00:09.5]} 38...
Kf5 {[%clk 0:00:09.5]} 39. Rf1+ {[%clk 0:00:06.5]} 39... Ke4 {[%clk 0:00:11.1]}
40. Qh4+ {[%clk 0:00:06.8]} 40... Kd5 {[%clk 0:00:11.5]} 41. e4+ {[%clk
0:00:05.4]} 41... Kxc5 {[%clk 0:00:10.9]} 42. Qe7+ {[%clk 0:00:06.4]} 42... Kd4
{[%clk 0:00:12]} 43. Rb4+ {[%clk 0:00:05.6]} 43... Ke3 {[%clk 0:00:10.1]} 44.
Qg5+ {[%clk 0:00:06.1]} 44... Kd3 {[%clk 0:00:10.9]} 45. Rd1+ {[%clk 0:00:06]}
45... Kc2 {[%clk 0:00:12.1]} 46. Qd2# {[%clk 0:00:06.9]} 1-0

[Event "*** Titled Tuesday 3|2 Blitz"]
[Site "Chess.com"]
[Date "2016.02.02"]
[Round "3"]
[White "JusticeBot"]
[Black "GMHess"]
[Result "0-1"]
[WhiteElo "2431"]
[BlackElo "2492"]
[TimeControl "180+2"]
[EndTime "17:35:05 PST"]
[Termination "GMHess won by checkmate"]

1. e4 {[%clk 0:03:01.9]} 1... c5 {[%clk 0:02:57.9]} 2. c3 {[%clk 0:03:03.1]}
2... Nf6 {[%clk 0:02:58]} 3. e5 {[%clk 0:03:04.4]} 3... Nd5 {[%clk 0:02:59.1]}
4. d4 {[%clk 0:03:06.3]} 4... cxd4 {[%clk 0:03:00.7]} 5. Nf3 {[%clk 0:03:08.2]}
5... e6 {[%clk 0:03:01.5]} 6. Bc4 {[%clk 0:03:07.6]} 6... Nc6 {[%clk 0:02:59.8]}
7. O-O {[%clk 0:03:05.2]} 7... Nb6 {[%clk 0:02:51.7]} 8. Bb3 {[%clk 0:03:05.9]}
8... dxc3 {[%clk 0:02:48.3]} 9. Nxc3 {[%clk 0:03:07.8]} 9... d5 {[%clk
0:02:41.7]} 10. exd6 {[%clk 0:03:09.7]} 10... Bxd6 {[%clk 0:02:10]} 11. Qe2
{[%clk 0:03:11.6]} 11... O-O {[%clk 0:02:03.7]} 12. Rd1 {[%clk 0:03:13.5]} 12...
Qe7 {[%clk 0:01:58.1]} 13. Bc2 {[%clk 0:03:06.5]} 13... Bb4 {[%clk 0:00:46]} 14.
Bxh7+ {[%clk 0:03:01.4]} 14... Kxh7 {[%clk 0:00:46.8]} 15. Ng5+ {[%clk
0:03:02.5]} 15... Kg6 {[%clk 0:00:41.7]} 16. Qd3+ {[%clk 0:02:15.9]} 16... f5
{[%clk 0:00:33.7]} 17. Qh3 {[%clk 0:01:55.1]} 17... Bxc3 {[%clk 0:00:34.7]} 18.
Qh7+ {[%clk 0:01:34]} 18... Kf6 {[%clk 0:00:35.6]} 19. bxc3 {[%clk 0:01:28.2]}
19... Bd7 {[%clk 0:00:29.6]} 20. c4 {[%clk 0:00:57]} 20... Rh8 {[%clk
0:00:17.4]} 21. Bb2+ {[%clk 0:00:53.1]} 21... e5 {[%clk 0:00:15.9]} 22. Ne4+
{[%clk 0:00:47.7]} 22... Kf7 {[%clk 0:00:11.2]} 23. Nd6+ {[%clk 0:00:43.7]}
23... Qxd6 {[%clk 0:00:06.3]} 24. Rxd6 {[%clk 0:00:41]} 24... Rxh7 {[%clk
0:00:07.2]} 25. c5 {[%clk 0:00:42.9]} 25... Be6 {[%clk 0:00:07.2]} 26. cxb6
{[%clk 0:00:42.7]} 26... axb6 {[%clk 0:00:09.1]} 27. a3 {[%clk 0:00:41.8]} 27...
Rh4 {[%clk 0:00:10.1]} 28. Rad1 {[%clk 0:00:40]} 28... Rc4 {[%clk 0:00:11.1]}
29. Bc1 {[%clk 0:00:41.2]} 29... Rd4 {[%clk 0:00:11.4]} 30. Bb2 {[%clk 0:00:40]}
30... Rxd1+ {[%clk 0:00:11.8]} 31. Rxd1 {[%clk 0:00:41.9]} 31... Rd8 {[%clk
0:00:13]} 32. Rxd8 {[%clk 0:00:41.1]} 32... Nxd8 {[%clk 0:00:14.9]} 33. Bxe5
{[%clk 0:00:42.4]} 33... Nc6 {[%clk 0:00:16.6]} 34. Bd6 {[%clk 0:00:42.5]} 34...
b5 {[%clk 0:00:18.5]} 35. f3 {[%clk 0:00:43.4]} 35... Bc4 {[%clk 0:00:19.4]} 36.
Kf2 {[%clk 0:00:44.7]} 36... Ke6 {[%clk 0:00:21.1]} 37. Bf8 {[%clk 0:00:45.2]}
37... g6 {[%clk 0:00:22.7]} 38. Ke3 {[%clk 0:00:45.4]} 38... Ne5 {[%clk
0:00:21.6]} 39. Kf4 {[%clk 0:00:45.3]} 39... Bf1 {[%clk 0:00:21.5]} 40. g4
{[%clk 0:00:44.1]} 40... Be2 {[%clk 0:00:18.2]} 41. Bg7 {[%clk 0:00:40.6]} 41...
Nxf3 {[%clk 0:00:14.5]} 42. gxf5+ {[%clk 0:00:41.2]} 42... gxf5 {[%clk
0:00:15.2]} 43. Ke3 {[%clk 0:00:43.1]} 43... Bd1 {[%clk 0:00:14.9]} 44. h3
{[%clk 0:00:44.5]} 44... Ne5 {[%clk 0:00:13.6]} 45. Kf4 {[%clk 0:00:44.9]} 45...
Nc4 {[%clk 0:00:14.1]} 46. Bf8 {[%clk 0:00:45.4]} 46... Nb6 {[%clk 0:00:13.5]}
47. h4 {[%clk 0:00:45.5]} 47... Nd5+ {[%clk 0:00:14.9]} 48. Kg5 {[%clk
0:00:44.9]} 48... f4 {[%clk 0:00:15.1]} 49. h5 {[%clk 0:00:44.6]} 49... f3
{[%clk 0:00:14.1]} 50. Bc5 {[%clk 0:00:43.4]} 50... Nf6 {[%clk 0:00:14]} 51. h6
{[%clk 0:00:39]} 51... Kf7 {[%clk 0:00:11.4]} 52. Bd4 {[%clk 0:00:37.8]} 52...
f2 {[%clk 0:00:09.5]} 53. Bxf2 {[%clk 0:00:31.6]} 53... Ne4+ {[%clk 0:00:10.7]}
54. Kf4 {[%clk 0:00:33]} 54... Nxf2 {[%clk 0:00:12.4]} 55. h7 {[%clk 0:00:31]}
55... Kg7 {[%clk 0:00:13.5]} 56. Ke3 {[%clk 0:00:32.9]} 56... Ng4+ {[%clk
0:00:12.7]} 57. Kd2 {[%clk 0:00:34.8]} 57... Ba4 {[%clk 0:00:13.1]} 58. Kc3
{[%clk 0:00:36.7]} 58... Kxh7 {[%clk 0:00:14]} 59. Kb4 {[%clk 0:00:38.6]} 59...
Kg6 {[%clk 0:00:15.7]} 60. Kc5 {[%clk 0:00:40.4]} 60... Kf5 {[%clk 0:00:17.3]}
61. Kb6 {[%clk 0:00:42.3]} 61... Ke4 {[%clk 0:00:19.2]} 62. Kxb7 {[%clk
0:00:44.1]} 62... Kd3 {[%clk 0:00:20.8]} 63. Ka6 {[%clk 0:00:46]} 63... Kc3
{[%clk 0:00:22.3]} 64. Ka5 {[%clk 0:00:47.9]} 64... Kb3 {[%clk 0:00:24]} 65. Kb6
{[%clk 0:00:49.4]} 65... Kxa3 {[%clk 0:00:25.5]} 66. Kc5 {[%clk 0:00:51.3]}
66... b4 {[%clk 0:00:27.1]} 67. Kd4 {[%clk 0:00:53.2]} 67... b3 {[%clk 0:00:29]}
68. Kc3 {[%clk 0:00:54.8]} 68... b2 {[%clk 0:00:29.7]} 69. Kd2 {[%clk
0:00:56.7]} 69... b1=Q {[%clk 0:00:30.6]} 70. Ke2 {[%clk 0:00:58.3]} 70... Qe4+
{[%clk 0:00:27.5]} 71. Kd2 {[%clk 0:00:58.9]} 71... Qe3# {[%clk 0:00:28.4]} 0-1

[Event "*** Titled Tuesday 3|2 Blitz"]
[Site "Chess.com"]
[Date "2016.02.02"]
[Round "3"]
[White "AndreyOstrovskiy"]
[Black "Ar4uha"]
[Result "1-0"]
[WhiteElo "2471"]
[BlackElo "2399"]
[TimeControl "180+2"]
[EndTime "17:35:31 PST"]
[Termination "AndreyOstrovskiy won by resignation"]

1. e4 {[%clk 0:03:01.9]} 1... d6 {[%clk 0:02:58.6]} 2. d4 {[%clk 0:03:02.5]}
2... Nf6 {[%clk 0:02:59.9]} 3. f3 {[%clk 0:03:03.4]} 3... e5 {[%clk 0:03:00.7]}
4. dxe5 {[%clk 0:03:04.1]} 4... dxe5 {[%clk 0:03:02.6]} 5. Qxd8+ {[%clk
0:03:05.2]} 5... Kxd8 {[%clk 0:03:04.5]} 6. Bc4 {[%clk 0:03:06.6]} 6... Be6
{[%clk 0:03:05.2]} 7. Bxe6 {[%clk 0:03:06.7]} 7... fxe6 {[%clk 0:03:07.1]} 8.
Nh3 {[%clk 0:03:04.9]} 8... Bc5 {[%clk 0:02:53.2]} 9. Nd2 {[%clk 0:03:04.6]}
9... Ke7 {[%clk 0:02:53.5]} 10. Nb3 {[%clk 0:03:03.2]} 10... Bb6 {[%clk
0:02:54.7]} 11. Nf2 {[%clk 0:02:59.1]} 11... a5 {[%clk 0:02:47.6]} 12. Nd3
{[%clk 0:02:53.9]} 12... Nbd7 {[%clk 0:02:42.1]} 13. a4 {[%clk 0:02:54.2]} 13...
c6 {[%clk 0:02:42.6]} 14. Bd2 {[%clk 0:02:51.7]} 14... Rhg8 {[%clk 0:02:37.6]}
15. h4 {[%clk 0:02:31.5]} 15... Nh5 {[%clk 0:02:16.8]} 16. g4 {[%clk 0:02:25.8]}
16... Nf4 {[%clk 0:02:14.4]} 17. Nxf4 {[%clk 0:02:20.8]} 17... exf4 {[%clk
0:02:15.6]} 18. Bxf4 {[%clk 0:02:22]} 18... Rgf8 {[%clk 0:02:06.2]} 19. Bg5+
{[%clk 0:02:22.2]} 19... Kd6 {[%clk 0:02:07.3]} 20. Ke2 {[%clk 0:02:22.2]} 20...
Ne5 {[%clk 0:02:03.6]} 21. Nd2 {[%clk 0:02:20.1]} 21... Kc7 {[%clk 0:01:47.6]}
22. h5 {[%clk 0:02:15.8]} 22... Rf7 {[%clk 0:01:47.3]} 23. Bh4 {[%clk 0:02:09]}
23... Bc5 {[%clk 0:01:36.4]} 24. Bg3 {[%clk 0:02:05.7]} 24... Bd6 {[%clk
0:01:37.7]} 25. Bxe5 {[%clk 0:02:06.7]} 25... Bxe5 {[%clk 0:01:38.7]} 26. Nc4
{[%clk 0:02:07.9]} 26... Bd4 {[%clk 0:01:33.3]} 27. Rhd1 {[%clk 0:02:05.3]}
27... Bc5 {[%clk 0:01:29.8]} 28. c3 {[%clk 0:02:00.6]} 28... Raf8 {[%clk
0:01:25]} 29. Rd3 {[%clk 0:01:57.9]} 29... b6 {[%clk 0:01:24.6]} 30. Rad1 {[%clk
0:01:52.1]} 30... Re7 {[%clk 0:01:21.8]} 31. Ne5 {[%clk 0:01:48.3]} 31... Rfe8
{[%clk 0:00:57.8]} 32. Rd7+ {[%clk 0:01:43.8]} 32... Kc8 {[%clk 0:00:59.1]} 33.
Rxe7 {[%clk 0:01:42.3]} 33... Rxe7 {[%clk 0:01:01]} 34. Nxc6 {[%clk 0:01:41.5]}
34... Rc7 {[%clk 0:01:02.1]} 35. Rd8+ {[%clk 0:01:37.6]} 35... Kb7 {[%clk
0:01:03.3]} 36. Ne5 {[%clk 0:01:38.7]} 36... Be7 {[%clk 0:00:56.5]} 37. Re8
{[%clk 0:01:31.5]} 37... Bf6 {[%clk 0:00:55.1]} 38. Nd3 {[%clk 0:01:25.2]} 38...
Rc4 {[%clk 0:00:49.2]} 39. e5 {[%clk 0:01:25.6]} 39... Bg5 {[%clk 0:00:48.2]}
40. Rxe6 {[%clk 0:01:19.9]} 40... Rxa4 {[%clk 0:00:49.4]} 41. Re8 {[%clk
0:01:12.8]} 41... Kc7 {[%clk 0:00:49.8]} 42. Rf8 {[%clk 0:01:11.1]} 42... Kc6
{[%clk 0:00:44]} 43. f4 {[%clk 0:01:08.9]} 43... Bh4 {[%clk 0:00:36.5]} 44. g5
{[%clk 0:01:03.6]} 44... h6 {[%clk 0:00:31.4]} 45. g6 {[%clk 0:00:55.3]} 45...
Kd5 {[%clk 0:00:32.6]} 46. Kf3 {[%clk 0:00:44.8]} 46... Kc4 {[%clk 0:00:26.9]}
47. Nc1 {[%clk 0:00:43.4]} 47... Ra1 {[%clk 0:00:26.8]} 48. Rc8+ {[%clk
0:00:43.6]} 48... Kd5 {[%clk 0:00:27.7]} 49. Ne2 {[%clk 0:00:38]} 49... Rf1+
{[%clk 0:00:28.2]} 50. Kg4 {[%clk 0:00:39.2]} 50... Be7 {[%clk 0:00:29]} 51. Rc7
{[%clk 0:00:36.8]} 51... Bc5 {[%clk 0:00:24.8]} 52. Rxg7 {[%clk 0:00:31.3]}
52... Re1 {[%clk 0:00:24.7]} 53. Ng3 {[%clk 0:00:31.7]} 53... Rg1 {[%clk
0:00:25.2]} 54. Kf3 {[%clk 0:00:29.4]} 54... Ke6 {[%clk 0:00:18.7]} 55. Ne4
{[%clk 0:00:23.8]} 55... Rf1+ {[%clk 0:00:10.9]} 56. Kg4 {[%clk 0:00:24.1]}
56... Rg1+ {[%clk 0:00:11.7]} 57. Kh3 {[%clk 0:00:19.5]} 57... Be3 {[%clk
0:00:12.4]} 58. Rf7 {[%clk 0:00:19.6]} 58... Kd5 {[%clk 0:00:11.6]} 59. Ng3
{[%clk 0:00:20.3]} 59... Bf2 {[%clk 0:00:10.7]} 60. Ne2 {[%clk 0:00:21.4]} 60...
Ke4 {[%clk 0:00:11.3]} 61. Nxg1 {[%clk 0:00:22.1]} 1-0

[Event "*** Titled Tuesday 3|2 Blitz"]
[Site "Chess.com"]
[Date "2016.02.02"]
[Round "3"]
[White "tigra"]
[Black "vellottiwizard"]
[Result "1/2-1/2"]
[WhiteElo "2412"]
[BlackElo "2431"]
[TimeControl "180+2"]
[EndTime "17:35:37 PST"]
[Termination "Game drawn - insufficient material"]

1. e4 {[%clk 0:03:01.9]} 1... e6 {[%clk 0:03:00.3]} 2. d4 {[%clk 0:03:02.6]}
2... d5 {[%clk 0:03:01.7]} 3. Nc3 {[%clk 0:03:04.3]} 3... Bb4 {[%clk 0:03:02.5]}
4. e5 {[%clk 0:03:05.4]} 4... c5 {[%clk 0:03:04]} 5. a3 {[%clk 0:03:06.9]} 5...
Bxc3+ {[%clk 0:03:05.6]} 6. bxc3 {[%clk 0:03:08.8]} 6... Ne7 {[%clk 0:03:07.3]}
7. Qg4 {[%clk 0:03:09.5]} 7... Qc7 {[%clk 0:03:07.8]} 8. Qxg7 {[%clk 0:03:08.5]}
8... Rg8 {[%clk 0:03:09.2]} 9. Qxh7 {[%clk 0:03:10]} 9... cxd4 {[%clk
0:03:10.8]} 10. Ne2 {[%clk 0:03:11.2]} 10... Nbc6 {[%clk 0:03:08.7]} 11. f4
{[%clk 0:03:11.9]} 11... dxc3 {[%clk 0:03:09.3]} 12. Rb1 {[%clk 0:03:13.2]}
12... Bd7 {[%clk 0:03:09.5]} 13. h4 {[%clk 0:03:09.9]} 13... d4 {[%clk
0:02:56.9]} 14. h5 {[%clk 0:03:07.2]} 14... O-O-O {[%clk 0:02:54.3]} 15. Qe4
{[%clk 0:03:07.6]} 15... Nf5 {[%clk 0:02:53.4]} 16. Rh3 {[%clk 0:02:58.8]} 16...
Rg7 {[%clk 0:02:13.8]} 17. Rd3 {[%clk 0:02:43.4]} 17... Rh8 {[%clk 0:01:55.1]}
18. Qf3 {[%clk 0:02:44.3]} 18... Nh4 {[%clk 0:01:21.8]} 19. Qf2 {[%clk
0:02:43.6]} 19... Nf5 {[%clk 0:01:20.7]} 20. Rh3 {[%clk 0:02:24.3]} 20... Qa5
{[%clk 0:01:04.5]} 21. Ng1 {[%clk 0:02:13.6]} 21... Qd5 {[%clk 0:00:57.2]} 22.
Qf3 {[%clk 0:01:30.1]} 22... Qa2 {[%clk 0:00:52.7]} 23. Rb3 {[%clk 0:01:26.5]}
23... Qxc2 {[%clk 0:00:45.9]} 24. Qd1 {[%clk 0:01:21.3]} 24... Rxg2 {[%clk
0:00:30.2]} 25. Ne2 {[%clk 0:01:01]} 25... Qxd1+ {[%clk 0:00:25.7]} 26. Kxd1
{[%clk 0:01:02.6]} 26... Rg7 {[%clk 0:00:25.2]} 27. a4 {[%clk 0:01:00.6]} 27...
Rgh7 {[%clk 0:00:25.4]} 28. Ba3 {[%clk 0:00:57.2]} 28... Rxh5 {[%clk 0:00:25.4]}
29. Rd3 {[%clk 0:00:58.4]} 29... Rh1 {[%clk 0:00:18.9]} 30. Ke1 {[%clk 0:01:00]}
30... R8h2 {[%clk 0:00:17.4]} 31. Bc5 {[%clk 0:00:58.2]} 31... Ne3 {[%clk
0:00:12.4]} 32. Rxe3 {[%clk 0:00:58.9]} 32... dxe3 {[%clk 0:00:14.3]} 33. Rxc3
{[%clk 0:00:58.7]} 33... b6 {[%clk 0:00:15.3]} 34. Bxe3 {[%clk 0:00:59.4]} 34...
Kb7 {[%clk 0:00:16.8]} 35. Ng3 {[%clk 0:00:59.3]} 35... Rxf1+ {[%clk 0:00:16.3]}
36. Kxf1 {[%clk 0:01:00.8]} 36... Ra2 {[%clk 0:00:17.7]} 37. Ne4 {[%clk
0:00:59.5]} 37... Rxa4 {[%clk 0:00:12.4]} 38. Nd6+ {[%clk 0:01:00.7]} 38... Kb8
{[%clk 0:00:13.3]} 39. Nxf7 {[%clk 0:01:02.2]} 39... Ne7 {[%clk 0:00:13.8]} 40.
Rb3 {[%clk 0:00:58.2]} 40... Nd5 {[%clk 0:00:13.9]} 41. f5 {[%clk 0:00:52.7]}
41... exf5 {[%clk 0:00:12.3]} 42. Bf2 {[%clk 0:00:51.7]} 42... Re4 {[%clk
0:00:10.3]} 43. Kg1 {[%clk 0:00:47.2]} 43... Be6 {[%clk 0:00:08.9]} 44. Bg3
{[%clk 0:00:44.7]} 44... f4 {[%clk 0:00:07.7]} 45. Nd8 {[%clk 0:00:43.5]} 45...
Rxe5 {[%clk 0:00:06.3]} 46. Nc6+ {[%clk 0:00:39.3]} 46... Kc7 {[%clk 0:00:07.4]}
47. Nxe5 {[%clk 0:00:41]} 47... fxg3 {[%clk 0:00:09.1]} 48. Rxg3 {[%clk
0:00:42]} 48... a5 {[%clk 0:00:10.2]} 49. Kf2 {[%clk 0:00:42.7]} 49... b5 {[%clk
0:00:11]} 50. Ke2 {[%clk 0:00:42.4]} 50... Kd6 {[%clk 0:00:12.3]} 51. Nd3 {[%clk
0:00:43.2]} 51... Nc3+ {[%clk 0:00:13.4]} 52. Ke3 {[%clk 0:00:43.8]} 52... b4
{[%clk 0:00:14.6]} 53. Rg5 {[%clk 0:00:42.4]} 53... Bd5 {[%clk 0:00:15.7]} 54.
Kd4 {[%clk 0:00:41.1]} 54... Nb5+ {[%clk 0:00:15.7]} 55. Ke3 {[%clk 0:00:42.1]}
55... b3 {[%clk 0:00:16]} 56. Rg6+ {[%clk 0:00:42.9]} 56... Kc7 {[%clk
0:00:13.6]} 57. Kd2 {[%clk 0:00:41.9]} 57... a4 {[%clk 0:00:13.1]} 58. Ra6
{[%clk 0:00:42.8]} 58... a3 {[%clk 0:00:12.1]} 59. Kc1 {[%clk 0:00:41.9]} 59...
Kb7 {[%clk 0:00:12.4]} 60. Nc5+ {[%clk 0:00:42.2]} 60... Kc7 {[%clk 0:00:14]}
61. Nxb3 {[%clk 0:00:20.3]} 61... Bxb3 {[%clk 0:00:14.1]} 62. Rxa3 {[%clk
0:00:21.8]} 62... Nxa3 {[%clk 0:00:11.1]} 63. Kb2 {[%clk 0:00:23.3]} 63... Nc4+
{[%clk 0:00:13]} 64. Kxb3 {[%clk 0:00:24.6]} 1/2-1/2